[Event "Czech Open Rapid G1 2024"]
[Site "Pardubice"]
[Date "2024.07.17"]
[Round "2.24"]
[White "Abdulov, Orkhan"]
[Black "Stary, Simon"]
[Result "1-0"]
[Annotator "TA"]
[ECO "B38"]
[WhiteElo "2382"]
[BlackElo "1836"]
[PlyCount "145"]
[EventDate "2024.07.16"]
[EventType "swiss"]
[EventCountry "CZE"]
[SourceTitle "playchess.com"]
[Source "ChessBase"]
[SourceQuality "1"]
[TimeControl "1200+10"]

{[%evp 23,145,50,69,49,72,27,47,40,36,20,22,17,21,20,27,28,37,15,33,0,89,104,271,151,186,137,133,25,49,47,22,0,64,74,62,67,100,104,94,62,70,43,70,50,52,60,69,42,43,46,55,38,21,20,38,36,55,0,15,0,45,10,11,11,11,0,0,0,0,0,0,0,0,1,902,881,884,598,536,0,8,8,8,0,8,8,30,8,1687,2304,12849,29937,3922,8,29954,29956,29952,29956,29963,29965,29965,29966,29968,29969,29971,29973,29973,29974,29975,29976,29976,29977,29977,29978,29978,29979,29979,29979,29979,29980,29980,29981,29981,29982]} 1. e4 {[%emt 0:00:05]} c5 {[%emt 0:00:01]} 2. Nf3 {[%emt 0:00:03]} d6 {[%emt 0:00:01]} 3. d4 {[%emt 0:00:06]} cxd4 {[%emt 0:00:01]} 4. Nxd4 {[%emt 0:00:03]} Nf6 {[%emt 0:00:01]} 5. f3 {[%emt 0:00:26]} a6 {[%emt 0:00:14]} 6. c4 {[%emt 0:00:05]} g6 {[%emt 0:00:01]} 7. Nc3 {[%emt 0:00:10]} Bg7 {[%emt 0:00:02]} 8. Be3 {[%emt 0:00:11]} O-O {[%emt 0:00:03]} 9. Be2 {[%emt 0:00:09]} Nc6 {[%emt 0:00:08]} 10. O-O {[%emt 0:00:10]} Bd7 {[%emt 0:00:01]} 11. Qd2 {[%emt 0:00:11]} Nxd4 {[%emt 0:00:04]} 12. Bxd4 {[%emt 0:00:06]} Bc6 {[%emt 0:00:01]} 13. Rfd1 {[%emt 0:00:09]} Nd7 {[%emt 0:00:01]} 14. Rac1 {[%emt 0:00:25]} a5 {[%emt 0:01:48]} 15. Bxg7 {[%emt 0:00:47] White is slightly better.} Kxg7 {[%emt 0:00:01]} 16. Qd4+ {[%emt 0:00:10]} Kg8 {[%emt 0:00:06]} 17. Nd5 {[%emt 0:00:10]} Bxd5 {[%emt 0:00:29]} 18. cxd5 {[%emt 0:00:23]} Nc5 {[%emt 0:00:10]} 19. f4 {[%emt 0:01:10][%cal Bf3f4,Bf4f5][%mdl 32]} Qd7 {[%emt 0:00:58]} 20. f5 {[%emt 0:01:22]} b6 {[%emt 0:02:57]} 21. b3 {[%emt 0:00:33]} Rac8 {[%emt 0:01:01] Black is weak on the light squares} (21... gxf5 $11 {keeps the balance.} 22. e5 Rac8) 22. Rc3 $16 {[%emt 0:00:07]} Rfe8 $2 {[%emt 0:02:18]} (22... b5 $16) 23. Rg3 {[%emt 0:00:34]} ({White should play} 23. Rh3 $18) 23... Qc7 {[%emt 0:01:05]} 24. h4 {[%emt 0:00:30]} (24. Bg4 $18) 24... Nd7 {[%emt 0:00:18]} 25. h5 {[%emt 0:01:12] White has more active pieces.} (25. Ba6 $16) 25... Ne5 {[%emt 0:00:04]} 26. hxg6 {[%emt 0:00:37]} hxg6 {[%emt 0:00:07]} 27. fxg6 {[%emt 0:00:31]} fxg6 {[%emt 0:00:02]} (27... f6 $1 $11) 28. Bg4 $14 {[%emt 0:00:05]} Nxg4 {[%emt 0:01:25]} 29. Rxg4 {[%emt 0:00:02]} Qc5 {[%emt 0:00:01]} 30. Rxg6+ {[%emt 0:00:16]} Kh7 {[%emt 0:00:01][%cal Bg8h7,Bh7h6,Bh6g6][%mdl 32]} 31. Rg7+ {[%emt 0:00:37]} (31. Re6 {simplifies} Qxd4+ 32. Rxd4 Rc1+ 33. Kh2) 31... Kh6 {[%emt 0:00:08] White must now prevent ...Qxd4+.} 32. Rg3 {[%emt 0:00:28] Qxc5 is the strong threat.} (32. Qxc5 {simplifies} bxc5 33. Rg3 Rg8 34. Rh3+) 32... Rg8 {[%emt 0:01:19]} 33. Qxc5 {[%emt 0:00:59]} bxc5 {[%emt 0:00:02][%mdl 4096] Endgame. KRR-KRR} 34. Rh3+ {[%emt 0:01:50]} Kg6 {[%emt 0:00:12]} 35. Rf1 {[%emt 0:00:09]} Rgf8 {[%emt 0:00:46]} 36. Rg3+ {[%emt 0:00:11]} Kh6 {[%emt 0:00:05]} 37. Rxf8 {[%emt 0:00:08]} Rxf8 {[%emt 0:00:01] KR-KR} 38. Rf3 {[%emt 0:00:01]} Re8 {[%emt 0:00:27]} 39. Kf2 {[%emt 0:02:05]} Kg6 {[%emt 0:00:01] Repels e5} 40. Rc3 {[%emt 0:00:37]} (40. e5 $14) 40... Kf6 {[%emt 0:00:33]} 41. Rf3+ {[%emt 0:00:22]} Kg6 $1 {[%emt 0:00:16]} 42. Ke3 {[%emt 0:01:06]} Ra8 {[%emt 0:00:01] [#]} 43. e5 $1 {[%emt 0:00:35]} a4 $1 {[%emt 0:01:06]} 44. exd6 {[%emt 0:00:53]} exd6 {[%emt 0:00:07]} 45. Kd3 {[%emt 0:00:11]} axb3 {[%emt 0:00:04]} 46. axb3 {[%emt 0:00:02]} Rb8 {[%emt 0:00:10]} 47. Kc3 {[%emt 0:00:13]} Re8 {[%emt 0:00:48]} 48. Kc4 {[%emt 0:00:13] And now Kb5 would win.} Re5 $2 {[%emt 0:00:02][%mdl 8192]} (48... Rb8 $11) 49. Rd3 {[%emt 0:00:34]} Kf5 {[%emt 0:01:17]} 50. Kb5 {[%emt 0:02:36] Strongly threatening Kc6.} Ke4 {[%emt 0:00:38] [#]} 51. Kc4 {[%emt 0:01:08]} (51. Rd1 $1 $18) 51... Rg5 {[%emt 0:01:17]} 52. Rd2 {[%emt 0:00:20]} Ke3 {[%emt 0:00:49] Repels Re2+} 53. Rb2 {[%emt 0:00:26]} Re5 {[%emt 0:00:54]} 54. Rb1 {[%emt 0:01:00] Re1+ would kill now.} Rg5 {[%emt 0:00:07]} 55. Re1+ {[%emt 0:00:27]} Kf4 $2 {[%emt 0:00:44][%mdl 8192] White stays focused until the end.} (55... Kd2 $11 56. Rf1 (56. Re6 Rg4+ 57. Kb5 Rb4+ 58. Kc6 Rxb3 $11) 56... Rxg2) 56. Re6 $18 {[%emt 0:00:13]} Rxg2 {[%emt 0:00:04]} 57. Rxd6 {[%emt 0:00:02]} Rc2+ {[%emt 0:00:02]} 58. Kd3 $2 {[%emt 0:00:17]} ({White must play} 58. Kb5 $18 {Threatening mate with Re6.} Ke4 59. Kc6) 58... Rc1 $2 {[%emt 0:00:26][%mdl 8192]} (58... Ke5 $11) 59. Re6 {[%emt 0:00:36] White mates.} Kf5 {[%emt 0:00:28]} 60. Re2 {[%emt 0:00:03]} Kf6 {[%emt 0:00:30]} 61. d6 {[%emt 0:00:09]} Rd1+ {[%emt 0:00:03]} 62. Kc4 {[%emt 0:00:01]} Rxd6 63. Kxc5 {[%emt 0:00:01]} Rd1 {[%emt 0:00:14]} 64. b4 {[%emt 0:00:05][%cal Bb3b4,Bb4b5,Bb5b6,Bb6b7][%mdl 32]} Rc1+ {[%emt 0:00:22]} 65. Kb6 {[%emt 0:00:03]} Kf7 {[%emt 0:00:31]} 66. b5 {[%emt 0:00:01]} Rb1 {[%emt 0:00:12]} 67. Kc6 {[%emt 0:00:04]} Rc1+ {[%emt 0:00:02]} 68. Kb7 {[%emt 0:00:02]} Rb1 {[%emt 0:00:02]} 69. b6 {[%emt 0:00:01]} Rb3 {[%emt 0:00:02]} 70. Kc7 {[%emt 0:00:13]} Rc3+ {[%emt 0:00:02]} 71. Kb8 {[%emt 0:00:01]} Rb3 {[%emt 0:00:01]} 72. b7 {[%emt 0:00:01]} Kf6 {[%emt 0:00:03]} 73. Ra2 {[%emt 0:00:03] Weighted Error Value: White=0.44/Black=0.31.  Loses game:     	---       	Black=3      Mistake:       	White=4     	Black=2      Inaccurate:     	White=6     	Black=3      OK:         	White=7     	Black=9      Best:        	White=1     	Black=3      Strong:       	---       	Black=2} 1-0

[Event "Czech Open Rapid G1 2024"]
[Site "Pardubice"]
[Date "2024.07.17"]
[Round "2.25"]
[White "Skoloud, Natanael"]
[Black "Sherman, Raem"]
[Result "0-1"]
[Annotator "RC"]
[ECO "C01"]
[WhiteElo "1532"]
[BlackElo "2358"]
[PlyCount "80"]
[EventDate "2024.07.16"]
[EventType "swiss"]
[EventCountry "CZE"]
[SourceTitle "playchess.com"]
[Source "ChessBase"]
[SourceQuality "1"]
[TimeControl "1200+10"]

1. e4 {[%emt 0:00:06]} e6 {[%emt 0:00:11]} 2. d4 {[%emt 0:00:08]} d5 {[%emt 0:00:02]} 3. exd5 {[%emt 0:00:11]} exd5 {[%emt 0:00:01]} 4. c4 {[%emt 0:00:23]} Bb4+ {[%emt 0:00:04]} 5. Nc3 {[%emt 0:01:04]} Nf6 {[%emt 0:00:02]} 6. a3 {[%emt 0:01:13]} Bxc3+ {[%emt 0:00:06]} 7. bxc3 {[%emt 0:00:04]} O-O {[%emt 0:00:14]} 8. Bd3 {[%emt 0:01:14]} Be6 {[%emt 0:03:33]} 9. Qb3 {[%emt 0:02:20]} Nc6 {[%emt 0:01:09]} 10. c5 {[%emt 0:03:51]} b6 {[%emt 0:00:15]} 11. cxb6 {[%emt 0:01:30]} axb6 {[%emt 0:00:08]} 12. Bg5 {[%emt 0:00:20]} Na5 {[%emt 0:00:15]} 13. Qc2 {[%emt 0:00:33]} h6 {[%emt 0:00:09]} 14. Bh4 {[%emt 0:00:33]} Nc4 {[%emt 0:00:06]} 15. Bxc4 {[%emt 0:01:55]} dxc4 {[%emt 0:00:02]} 16. Nf3 {[%emt 0:00:18]} Bd5 {[%emt 0:00:38]} 17. O-O {[%emt 0:00:58]} Bxf3 {[%emt 0:00:25]} 18. gxf3 {[%emt 0:00:01]} Qd6 {[%emt 0:00:20]} 19. Qf5 {[%emt 0:01:06]} Ra5 {[%emt 0:00:14]} 20. Qh3 {[%emt 0:00:34]} Rh5 {[%emt 0:01:31]} 21. Qg3 {[%emt 0:00:46]} Qc6 {[%emt 0:00:06]} 22. Kh1 {[%emt 0:00:37]} g5 {[%emt 0:00:29]} 23. Rg1 {[%emt 0:00:33]} Rxh4 {[%emt 0:00:06]} 24. Qxh4 {[%emt 0:00:42]} Qxf3+ {[%emt 0:00:01]} 25. Rg2 {[%emt 0:00:02]} Qxg2+ {[%emt 0:00:02]} 26. Kxg2 {[%emt 0:00:02]} gxh4 {[%emt 0:00:01]} 27. Rg1 {[%emt 0:00:09]} Ra8 {[%emt 0:00:11]} 28. Kh3+ {[%emt 0:00:02]} Kf8 {[%emt 0:00:01]} 29. Kxh4 {[%emt 0:00:03]} Rxa3 {[%emt 0:00:03]} 30. Rg3 {[%emt 0:00:17]} Ne4 {[%emt 0:00:10]} 31. Re3 {[%emt 0:00:28]} Nxc3 {[%emt 0:00:04]} 32. Kg4 {[%emt 0:00:23]} Nb5 {[%emt 0:00:04]} 33. Re5 {[%emt 0:00:22]} Nxd4 {[%emt 0:00:05]} 34. Rd5 {[%emt 0:00:08]} Ne6 {[%emt 0:00:02]} 35. f4 {[%emt 0:00:13]} c3 {[%emt 0:00:10]} 36. Rd1 {[%emt 0:00:34]} c2 {[%emt 0:00:02]} 37. Rc1 {[%emt 0:00:01]} Rc3 {[%emt 0:00:02]} 38. Kf5 {[%emt 0:00:04]} Nd4+ {[%emt 0:00:04]} 39. Kf6 {[%emt 0:00:05]} Rc6+ {[%emt 0:00:03]} 40. Ke5 {[%emt 0:00:05]} Nb3 {[%emt 0:00:02]} 0-1

[Event "Czech Open Rapid G1 2024"]
[Site "Pardubice"]
[Date "2024.07.17"]
[Round "2.26"]
[White "Movsesian, Julia"]
[Black "Skoloud, Josef"]
[Result "1-0"]
[Annotator "RC"]
[ECO "C54"]
[WhiteElo "2202"]
[BlackElo "1575"]
[PlyCount "69"]
[EventDate "2024.07.16"]
[EventType "swiss"]
[EventCountry "CZE"]
[SourceTitle "playchess.com"]
[Source "ChessBase"]
[SourceQuality "1"]
[TimeControl "1200+10"]

1. e4 {[%emt 0:00:01]} e5 {[%emt 0:00:02]} 2. Nf3 {[%emt 0:00:03]} Nc6 {[%emt 0:00:02]} 3. Bc4 {[%emt 0:00:01]} Nf6 {[%emt 0:00:02]} 4. d3 {[%emt 0:00:05]} Bc5 {[%emt 0:00:24]} 5. c3 {[%emt 0:00:04]} O-O {[%emt 0:00:36]} 6. O-O {[%emt 0:00:04]} d6 {[%emt 0:00:44]} 7. Bg5 {[%emt 0:00:32]} Bg4 {[%emt 0:02:30]} 8. h3 {[%emt 0:00:02]} Bh5 {[%emt 0:00:04]} 9. g4 {[%emt 0:00:30]} Bg6 {[%emt 0:00:06]} 10. Nbd2 {[%emt 0:00:05]} Re8 {[%emt 0:03:01]} 11. b4 {[%emt 0:00:22]} Bb6 {[%emt 0:00:09]} 12. Bb3 {[%emt 0:00:21]} a6 {[%emt 0:01:06]} 13. Nc4 {[%emt 0:00:10]} Ba7 {[%emt 0:00:18]} 14. Ne3 {[%emt 0:00:18]} h6 {[%emt 0:00:49]} 15. Bh4 {[%emt 0:00:11]} Bh7 {[%emt 0:02:41]} 16. Nf5 {[%emt 0:05:00]} Bxf5 {[%emt 0:01:15]} 17. gxf5 {[%emt 0:00:01]} Qe7 {[%emt 0:00:12]} 18. Nh2 {[%emt 0:00:19]} Kh7 {[%emt 0:01:09]} 19. Ng4 {[%emt 0:00:14]} Rg8 {[%emt 0:00:42]} 20. Kh1 {[%emt 0:00:55]} Raf8 {[%emt 0:02:37]} 21. Qd2 {[%emt 0:00:29]} Nb8 {[%emt 0:01:08]} 22. Bxf6 {[%emt 0:00:03]} Qxf6 {[%emt 0:00:21]} 23. Nxf6+ {[%emt 0:00:06]} gxf6 {[%emt 0:00:03]} 24. Rg1 {[%emt 0:00:12]} Rg5 {[%emt 0:00:12]} 25. h4 {[%emt 0:00:29]} Rh5 {[%emt 0:00:34]} 26. Rg4 {[%emt 0:00:02]} Rg8 {[%emt 0:00:12]} 27. Rag1 {[%emt 0:00:04]} Rgg5 {[%emt 0:00:26]} 28. Bxf7 {[%emt 0:00:10]} Rxh4+ {[%emt 0:00:39]} 29. Rxh4 {[%emt 0:00:03]} Rxg1+ {[%emt 0:00:06]} 30. Kxg1 {[%emt 0:00:02]} Bxf2+ {[%emt 0:00:06]} 31. Kxf2 {[%emt 0:00:08]} Kg7 {[%emt 0:00:02]} 32. Qxh6+ {[%emt 0:00:05]} Kxf7 {[%emt 0:00:02]} 33. Qg6+ {[%emt 0:00:01]} Ke7 {[%emt 0:00:03]} 34. Rh7+ {[%emt 0:00:02]} Kf8 {[%emt 0:00:02]} 35. Qf7# {[%emt 0:00:14]} 1-0

[Event "Czech Open Rapid G1 2024"]
[Site "Pardubice"]
[Date "2024.07.17"]
[Round "2.27"]
[White "Piesik, Piotr"]
[Black "Neuhoff, Laertes"]
[Result "1-0"]
[Annotator "TA"]
[ECO "A08"]
[WhiteElo "2415"]
[BlackElo "2090"]
[PlyCount "115"]
[EventDate "2024.07.16"]
[EventType "swiss"]
[EventCountry "CZE"]
[SourceTitle "playchess.com"]
[Source "ChessBase"]
[SourceQuality "1"]
[TimeControl "1200+10"]

{[%evp 16,115,0,-12,21,26,47,41,78,65,87,77,112,96,159,150,150,97,97,81,85,73,83,77,75,67,77,68,78,77,89,22,33,33,73,56,92,43,52,34,28,10,57,33,31,43,37,38,99,97,93,102,95,96,100,85,114,114,128,78,96,94,97,42,166,166,215,209,209,209,216,187,235,223,255,218,260,268,272,256,254,244,244,243,358,333,1369,1381,1710,1688,1795,1584,2387,1440,1826,1816,29981,29982,29982,29983,29983,29983]} 1. Nf3 {[%emt 0:00:02]} d5 {[%emt 0:00:03]} 2. g3 {[%emt 0:00:02]} Nf6 {[%emt 0:00:02]} 3. Bg2 {[%emt 0:00:01]} c5 {[%emt 0:00:01]} 4. O-O {[%emt 0:00:02]} g6 {[%emt 0:00:01]} 5. d3 {[%emt 0:00:02]} Bg7 {[%emt 0:00:01]} 6. Nbd2 {[%emt 0:00:02]} Nc6 {[%emt 0:00:02]} 7. e4 {[%emt 0:00:01]} dxe4 {[%emt 0:00:15]} 8. dxe4 {[%emt 0:00:01]} O-O {[%emt 0:00:29]} 9. c3 {[%emt 0:00:01]} Ng4 {[%emt 0:03:50]} 10. Qe2 {[%emt 0:02:06]} Nge5 {[%emt 0:00:54]} 11. Ne1 {[%emt 0:00:09] Against Qd3} Nd7 {[%emt 0:05:00] White is slightly better.} 12. f4 {[%emt 0:00:36][%cal Bf2f4,Bf4f5][%mdl 32]} e5 {[%emt 0:00:33]} 13. f5 {[%emt 0:00:03]} h6 {[%emt 0:00:43]} 14. Nc4 {[%emt 0:00:47]} g5 {[%emt 0:01:13]} (14... b6 $142) 15. Be3 {[%emt 0:00:21]} b6 {[%emt 0:01:01]} 16. Nd6 {[%emt 0:00:05] White has more active pieces. The black rooks are passive.} (16. Rd1 $142) 16... Nf6 {[%emt 0:00:37]} 17. Rd1 {[%emt 0:00:14]} Qe7 {[%emt 0:00:18]} 18. Nxc8 {[%emt 0:01:11]} Raxc8 {[%emt 0:00:22]} 19. Nc2 {[%emt 0:00:04]} Rfd8 {[%emt 0:00:51]} 20. Bf2 {[%emt 0:02:37]} Rxd1 {[%emt 0:01:32]} 21. Rxd1 {[%emt 0:00:01]} Rd8 {[%emt 0:00:01]} 22. Rxd8+ {[%emt 0:00:16]} Qxd8 {[%emt 0:00:05]} 23. Bf1 {[%emt 0:00:02]} (23. Ne3 $16) 23... Ne7 {[%emt 0:01:39]} 24. Na3 {[%emt 0:01:02]} Qa8 {[%emt 0:01:04]} 25. Bg2 {[%emt 0:00:05]} Nc6 {[%emt 0:00:33]} 26. Qb5 {[%emt 0:01:13]} (26. g4 $16) 26... Na5 $14 {[%emt 0:00:57]} 27. Bxc5 {[%emt 0:01:07]} Qd8 $1 {[%emt 0:00:07] Inhibits Be7.} 28. Be3 {[%emt 0:00:06][%cal Oh2h3]} Ng4 {[%emt 0:00:03]} (28... Bf8 $11 {feels stronger.} 29. b4 (29. Qxe5 $2 Qd1+ 30. Bf1 Ng4 $19) 29... Qd1+ 30. Bf1 (30. Qf1 Qa4 $11) 30... Qa1) 29. Qe2 {[%emt 0:00:02]} Nxe3 {[%emt 0:00:04]} 30. Qxe3 {[%emt 0:00:01]} Qd1+ {[%emt 0:00:01]} 31. Bf1 {[%emt 0:00:01][%cal Bg2f1,Bf1c4,Bc4d5][%mdl 32]} Bf8 {[%emt 0:00:06] [#]} (31... Qa1 $14) 32. b4 $1 $36 {[%emt 0:00:08][%mdl 2048] White is really pushing.} Qa4 {[%emt 0:00:29]} 33. Qc1 {[%emt 0:00:47]} Qc6 {[%emt 0:00:35] aiming for ...Bxb4.} 34. Qc2 {[%emt 0:00:51]} (34. bxa5 $6 Bc5+ 35. Kh1 Bxa3 (35... Qxe4+ 36. Bg2 $15) 36. Qxa3 Qxe4+ 37. Kg1 Qe3+ 38. Kg2 Qd2+ 39. Kf3 (39. Kh1 Qe1 $11) 39... e4+ (39... g4+ 40. Ke4 $11) 40. Kxe4 Qe1+ 41. Kd4 (41. Kd5 Qxf1 42. axb6 Qxf5+ 43. Kc6 Qf6+ 44. Qd6 Qxc3+ 45. Kb7 axb6 $11) 41... Qxf1 $11) 34... Nb7 {[%emt 0:00:32]} 35. Bc4 {[%emt 0:00:22]} a5 {[%emt 0:00:15] Black is weak on the light squares} 36. Bd5 {[%emt 0:00:06]} Qc8 {[%emt 0:00:06]} 37. Qd2 {[%emt 0:01:01]} (37. Nc4 $142) 37... axb4 {[%emt 0:00:50]} 38. cxb4 {[%emt 0:00:02]} Nd6 {[%emt 0:00:01] Dodges Nc4} 39. Nc2 {[%emt 0:01:42]} (39. Kg2 $16) 39... Nc4 {[%emt 0:00:28] Loses the game.} (39... Ne8 $14) 40. Qc3 $18 {[%emt 0:00:33]} b5 {[%emt 0:00:00] [#]} (40... Nd6 $142 41. Qxc8 Nxc8) 41. a4 $1 {[%emt 0:00:24][%cal Ba2a4,Ba4a5][%mdl 544]} Nd6 {[%emt 0:00:19]} 42. Qxc8 {[%emt 0:00:24]} Nxc8 {[%emt 0:00:01][%mdl 4096] Endgame. KBN-KBN} 43. a5 {[%emt 0:00:08]} Kg7 {[%emt 0:00:16]} (43... g4 $142 44. Kg2 Kg7) 44. Kf2 {[%emt 0:00:13]} Kf6 {[%emt 0:00:03]} 45. Ke2 {[%emt 0:00:04]} Bd6 {[%emt 0:00:04]} 46. Kd3 {[%emt 0:00:05] Threatens to win with Bc6.} (46. a6 Na7 47. Ba2 Ke7 $18) 46... Ke7 {[%emt 0:00:05]} 47. Kc3 {[%emt 0:00:02]} Bb8 {[%emt 0:00:37]} 48. Bb7 {[%emt 0:00:33]} Nd6 {[%emt 0:00:06]} 49. Bc6 {[%emt 0:00:02]} Ba7 {[%emt 0:00:03]} (49... Kd8 $142 50. Na3 Kc7 51. Bxb5 (51. Nxb5+ Kxc6 52. Nxd6 Bxd6 $15) 51... Nxe4+ 52. Kb3 Nd6) 50. Na3 {[%emt 0:00:07]} Kd8 $2 {[%emt 0:00:17]} (50... Bd4+ 51. Kb3 Bg1 52. Nxb5 (52. Bxb5 h5 $18) 52... Nxb5 53. Bxb5 g4) 51. Nxb5 {[%emt 0:00:26]} Nxb5+ {[%emt 0:00:11]} 52. Bxb5 {[%emt 0:00:01] KB-KB} f6 {[%emt 0:00:02]} 53. Be2 {[%emt 0:00:09]} Kc7 {[%emt 0:00:03]} 54. Kc4 {[%emt 0:00:02] White threatens b5 and mate.} Bg1 {[%emt 0:00:02]} 55. h3 {[%emt 0:00:10] Threatening mate with b5.} Kc6 {[%emt 0:00:02]} 56. b5+ {[%emt 0:00:01] White mates.} Kd6 {[%emt 0:00:01]} 57. b6 {[%emt 0:00:17]} Kc6 {[%emt 0:00:06]} 58. Bd1 {[%emt 0:00:01] Weighted Error Value: White=0.11 (very precise) /Black=0.40.  Mistake:       	White=5     	Black=8      Inaccurate:     	---       	Black=5      OK:         	White=20    	Black=12     Best:        	White=3     	Black=1      Strong:       	White=1     	Black=1} 1-0

[Event "Czech Open Rapid G1 2024"]
[Site "Pardubice"]
[Date "2024.07.17"]
[Round "2.28"]
[White "Jun, Rudolf"]
[Black "Sknouril, Jakub"]
[Result "1-0"]
[Annotator "RC"]
[ECO "C26"]
[WhiteElo "2232"]
[BlackElo "1752"]
[PlyCount "65"]
[EventDate "2024.07.16"]
[EventType "swiss"]
[EventCountry "CZE"]
[SourceTitle "playchess.com"]
[Source "ChessBase"]
[SourceQuality "1"]
[TimeControl "1200+10"]

1. e4 {[%emt 0:00:02]} d6 {[%emt 0:00:40]} 2. g3 {[%emt 0:00:07]} Nf6 {[%emt 0:00:03]} 3. Bg2 {[%emt 0:00:03]} e5 {[%emt 0:00:06]} 4. Nc3 {[%emt 0:00:05]} Be7 {[%emt 0:00:21]} 5. Nge2 {[%emt 0:00:10]} Nbd7 {[%emt 0:00:07]} 6. O-O {[%emt 0:00:07]} O-O {[%emt 0:00:05]} 7. d3 {[%emt 0:00:11]} c6 {[%emt 0:00:30]} 8. h3 {[%emt 0:00:16]} Nc5 {[%emt 0:02:08]} 9. d4 {[%emt 0:00:20]} Ne6 {[%emt 0:00:20]} 10. Be3 {[%emt 0:00:02]} Nd7 {[%emt 0:04:19]} 11. Kh2 {[%emt 0:01:06]} f5 {[%emt 0:00:52]} 12. exf5 {[%emt 0:00:03]} Rxf5 {[%emt 0:00:21]} 13. d5 {[%emt 0:00:02]} cxd5 {[%emt 0:08:28]} 14. Nxd5 {[%emt 0:00:01]} Nc7 {[%emt 0:03:49]} 15. Nxc7 {[%emt 0:00:30]} Qxc7 {[%emt 0:00:01]} 16. Nc3 {[%emt 0:00:01]} Nc5 {[%emt 0:00:04]} 17. Nd5 {[%emt 0:00:18]} Qd7 {[%emt 0:00:02]} 18. b4 {[%emt 0:00:25]} Ne6 {[%emt 0:00:09]} 19. Qd3 {[%emt 0:00:01]} Rf8 {[%emt 0:00:17]} 20. Rad1 {[%emt 0:00:02]} Rd8 {[%emt 0:00:04]} 21. c4 {[%emt 0:00:13]} Nc7 {[%emt 0:00:02]} 22. Nxe7+ {[%emt 0:00:15]} Qxe7 {[%emt 0:00:02]} 23. Bc5 {[%emt 0:01:04]} Ne8 {[%emt 0:00:27]} 24. f4 {[%emt 0:01:10]} Bxh3 {[%emt 0:00:33]} 25. Kxh3 {[%emt 0:01:29]} dxc5 {[%emt 0:00:01]} 26. Bd5+ {[%emt 0:00:01]} Kh8 {[%emt 0:00:02]} 27. fxe5 {[%emt 0:00:12]} Nc7 {[%emt 0:00:30]} 28. Qe4 {[%emt 0:01:14]} cxb4 {[%emt 0:00:09]} 29. Rf7 {[%emt 0:01:08]} Qc5 {[%emt 0:00:03]} 30. e6 {[%emt 0:00:56]} Re8 {[%emt 0:00:16]} 31. Kg2 {[%emt 0:01:09]} Qd6 {[%emt 0:00:15]} 32. Rh1 {[%emt 0:00:17]} h6 {[%emt 0:00:03]} 33. Rxh6+ {[%emt 0:00:03]} 1-0

[Event "Czech Open Rapid G1 2024"]
[Site "Pardubice"]
[Date "2024.07.17"]
[Round "2.29"]
[White "Novotny, Josef"]
[Black "Levytskyi, Liubomyr"]
[Result "0-1"]
[Annotator "RC"]
[ECO "A00"]
[WhiteElo "2033"]
[BlackElo "1717"]
[PlyCount "66"]
[EventDate "2024.07.16"]
[EventType "swiss"]
[EventCountry "CZE"]
[SourceTitle "playchess.com"]
[Source "ChessBase"]
[SourceQuality "1"]
[TimeControl "1200+10"]

1. e3 {[%emt 0:00:07]} e5 {[%emt 0:00:14]} 2. d3 {[%emt 0:00:02]} d5 {[%emt 0:00:02]} 3. h3 {[%emt 0:00:03]} c5 {[%emt 0:00:02]} 4. Nf3 {[%emt 0:00:02]} Nc6 {[%emt 0:00:02]} 5. Nc3 {[%emt 0:00:02]} Nf6 {[%emt 0:00:08]} 6. Be2 {[%emt 0:00:02]} Be7 {[%emt 0:00:39]} 7. a3 {[%emt 0:00:02]} Be6 {[%emt 0:00:04]} 8. Ng5 {[%emt 0:00:12]} Bf5 {[%emt 0:00:48]} 9. e4 {[%emt 0:00:25]} Bg6 {[%emt 0:00:08]} 10. exd5 {[%emt 0:00:30]} Nxd5 {[%emt 0:00:09]} 11. Nxd5 {[%emt 0:00:04]} Qxd5 {[%emt 0:00:29]} 12. Bf3 {[%emt 0:00:08]} Qd7 {[%emt 0:00:07]} 13. Ne4 {[%emt 0:00:14]} O-O {[%emt 0:00:27]} 14. O-O {[%emt 0:00:04]} Nd4 {[%emt 0:00:46]} 15. Be3 {[%emt 0:00:03]} Rac8 {[%emt 0:03:19]} 16. Re1 {[%emt 0:01:02]} Kh8 {[%emt 0:01:03]} 17. Ng3 {[%emt 0:00:16]} Nxf3+ {[%emt 0:01:26]} 18. Qxf3 {[%emt 0:00:03]} f5 {[%emt 0:00:03]} 19. Nf1 {[%emt 0:02:04]} Bf7 {[%emt 0:02:32]} 20. Rad1 {[%emt 0:00:24]} Bd5 {[%emt 0:00:11]} 21. Qe2 {[%emt 0:00:18]} f4 {[%emt 0:00:41]} 22. Bd2 {[%emt 0:01:02]} f3 {[%emt 0:01:08]} 23. Qxe5 {[%emt 0:00:07]} fxg2 {[%emt 0:00:26]} 24. Ng3 {[%emt 0:00:11]} Bf6 {[%emt 0:01:05]} 25. Qf5 {[%emt 0:01:08]} Qxf5 {[%emt 0:00:45]} 26. Nxf5 {[%emt 0:00:03]} Bxb2 {[%emt 0:00:01]} 27. Ne7 {[%emt 0:00:05]} Rcd8 {[%emt 0:01:48]} 28. Nxd5 {[%emt 0:00:04]} Rxd5 {[%emt 0:00:01]} 29. Kxg2 {[%emt 0:00:18]} Rdf5 {[%emt 0:00:41]} 30. Re2 {[%emt 0:00:15]} Bd4 {[%emt 0:00:58]} 31. Be3 {[%emt 0:00:05]} Bc3 {[%emt 0:00:00]} 32. Bxc5 {[%emt 0:00:14]} Rxc5 {[%emt 0:00:06]} 33. Re7 {[%emt 0:00:13]} Rcf5 {[%emt 0:00:13]} 0-1